[Event "Uruguayan Championship 2022"]
[Site "Montevideo"]
[Date "2022.04.09"]
[Round "2.2"]
[White "Coppola, Claudio"]
[Black "Roselli Mailhe, Bernardo"]
[Result "1/2-1/2"]
[ECO "E00"]
[WhiteElo "2285"]
[BlackElo "2426"]
[Annotator "TA"]
[PlyCount "85"]
[EventDate "2022.04.08"]
[EventType "tourn"]
[EventCountry "URU"]
[SourceTitle "playchess.com"]
[Source "ChessBase"]
[SourceQuality "1"]
[TimeControl "40/5400+30:1800+30"]

{[%evp 11,85,37,54,43,31,33,31,30,61,62,72,73,61,63,72,65,72,65,69,47,44,8,8,8,31,11,10,0,16,4,4,5,10,0,0,0,0,-6,0,0,0,0,0,-8,0,0,0,0,0,0,0,0,0,0,0,0,28,0,0,0,0,0,0,0,0,3,12,0,0,0,0,0,0,0,0,0]} 1. d4 {[%emt 0:16:20]} e6 {[%emt 0:00:12]} 2. c4 {[%emt 0:03:40]} Bb4+ {[%emt 0:00:07]} 3. Bd2 {[%emt 0:00:24]} a5 {[%emt 0:01:49]} 4. Nc3 {[%emt 0:02:15]} Nf6 {[%emt 0:01:31]} 5. Nf3 {[%emt 0:01:41]} d6 {[%emt 0:03:39]} 6. Qc2 {[%emt 0:02:25]} Nbd7 {[%emt 0:02:36]} 7. a3 {[%emt 0:00:48] E11: Bogo-Indian.} Bxc3 {[%emt 0:01:12]} 8. Bxc3 {[%emt 0:00:04]} O-O {[%emt 0:08:11]} 9. e4 {[%emt 0:10:51] White is slightly better.} e5 {[%emt 0:18:23]} 10. dxe5 {[%emt 0:07:04]} dxe5 {[%emt 0:00:27]} 11. Nxe5 {[%emt 0:03:02]} ({Reject} 11. Bxe5 $6 Nxe5 12. Nxe5 Re8 $15) 11... Nxe5 {[%emt 0:06:28]} 12. Bxe5 {[%emt 0:00:05]} Re8 {[%emt 0:00:04] [#]} 13. Rd1 $1 {[%emt 0:09:34]} Qe7 {[%emt 0:01:32]} 14. Bxf6 {[%emt 0:00:23] &Bianco is more active.} ({Worse is} 14. f4 Ng4 15. Bd3 Ne3 $17) 14... gxf6 {[%emt 0:10:38] [#]} 15. Bd3 $146 {[%emt 0:12:41]} ({Predecessor:} 15. Be2 f5 16. f3 fxe4 17. fxe4 Qh4+ 18. g3 Qxe4 19. Qxe4 Rxe4 20. Rd8+ Kg7 21. h3 Rxe2+ 22. Kxe2 {½-½ (40) Zueger,B (2465)-Andersson,U (2630) Prague 1996}) 15... f5 $1 {[%emt 0:03:30][%cal Rf5e4]} 16. e5 {[%emt 0:08:45]} Qxe5+ {[%emt 0:08:48]} 17. Qe2 {[%emt 0:01:29]} Qxe2+ {[%emt 0:00:20]} 18. Bxe2 {[%emt 0:00:03]} Ra6 {[%emt 0:04:50]} 19. Rd2 {[%emt 0:04:10]} Rae6 {[%emt 0:03:41]} 20. Kd1 {[%emt 0:02:03]} Bd7 {[%emt 0:06:09]} 21. Rxd7 {[%emt 0:00:21]} Rxe2 $11 {[%emt 0:00:07][%mdl 4096] Endgame KRR-KRR} 22. Rd2 {[%emt 0:00:30]} R2e4 {[%emt 0:00:27]} 23. b3 {[%emt 0:02:13]} a4 {[%emt 0:00:12]} 24. Kc2 {[%emt 0:00:36]} R8e6 {[%emt 0:00:42]} 25. Kc3 {[%emt 0:08:26]} axb3 {[%emt 0:03:34]} 26. Kxb3 {[%emt 0:00:01]} Rb6+ {[%emt 0:00:09]} 27. Kc3 {[%emt 0:00:02]} Rc6 {[%emt 0:00:09]} 28. Rd4 {[%emt 0:00:45]} b5 {[%emt 0:00:51]} 29. Rxe4 {[%emt 0:00:02]} fxe4 {[%emt 0:00:06] KR-KR} 30. Kb4 {[%emt 0:00:03]} Rxc4+ {[%emt 0:04:35]} 31. Kxb5 {[%emt 0:00:02]} Rc2 {[%emt 0:00:08]} 32. Rf1 {[%emt 0:01:43]} Ra2 {[%emt 0:03:13]} 33. a4 {[%emt 0:00:43][%cal Ba3a4,Ba4a5][%mdl 32]} Kf8 {[%emt 0:01:49]} 34. a5 {[%emt 0:00:08]} (34. Kb4 $5 {[%cal Rb4b3]}) 34... Ke7 {[%emt 0:00:05] The position is equal.} 35. Re1 {[%emt 0:01:37]} f5 {[%emt 0:02:45]} 36. f3 {[%emt 0:00:23]} Rxg2 {[%emt 0:01:14]} 37. fxe4 {[%emt 0:00:02]} fxe4 {[%emt 0:00:08]} 38. Rxe4+ {[%emt 0:00:04]} Kd7 {[%emt 0:00:08]} 39. h4 {[%emt 0:03:11]} Rb2+ {[%emt 0:01:25]} 40. Rb4 {[%emt 0:00:46]} Rxb4+ {[%emt 0:01:45]} 41. Kxb4 {[%emt 0:31:04]} Kc6 {[%emt 0:31:12]} 42. h5 {[%emt 0:00:00]} h6 {[%emt 0:00:00]} 43. Kc4 {[%emt 0:00:00] Weighted Error Value: White=0.05 (flawless) /Black=0.03 (flawless)} 1/2-1/2

[Event "Uruguayan Championship 2022"]
[Site "Montevideo"]
[Date "2022.04.09"]
[Round "2.3"]
[White "Hoffman, Alejandro"]
[Black "Lopez Azambuja, Nicolas"]
[Result "1/2-1/2"]
[ECO "D42"]
[WhiteElo "2403"]
[BlackElo "2318"]
[Annotator "TA"]
[PlyCount "43"]
[EventDate "2022.04.08"]
[EventType "tourn"]
[EventCountry "URU"]
[SourceTitle "playchess.com"]
[Source "ChessBase"]
[SourceQuality "1"]
[TimeControl "40/5400+30:1800+30"]

{[%evp 17,43,-5,3,-20,-3,0,29,12,17,0,14,12,12,18,17,22,25,24,19,20,117,117,117,117,109,14,21,0]} 1. d4 {[%emt 0:00:05]} Nf6 {[%emt 0:01:04]} 2. c4 {[%emt 0:00:12]} e6 {[%emt 0:00:14]} 3. Nf3 {[%emt 0:00:09]} d5 {[%emt 0:00:10]} 4. Nc3 {[%emt 0:00:10]} c5 {[%emt 0:00:22]} 5. cxd5 {[%emt 0:00:38]} Nxd5 {[%emt 0:00:19]} 6. e3 {[%emt 0:01:32]} Nc6 {[%emt 0:00:18]} 7. Bd3 {[%emt 0:00:39]} Be7 {[%emt 0:00:28]} 8. O-O {[%emt 0:01:11]} O-O {[%emt 0:00:29]} 9. Re1 {[%emt 0:04:33]} b6 {[%emt 0:01:33]} 10. a3 {[%emt 0:09:07] D42: Queen's Gambit Declined: Semi-Tarrasch: 5 cxd5 Nxd5 6 e3 Nc6 7 Bd3 .} Bb7 {[%emt 0:07:52]} 11. Nxd5 {[%emt 0:08:16]} exd5 {[%emt 0:03:03] [#]} 12. b3 $146 {[%emt 0:04:14] White has an edge.} ({Predecessor:} 12. dxc5 bxc5 13. e4 Bf6 14. exd5 Nd4 15. Be3 Bxd5 16. Nxd4 cxd4 17. Bf4 g6 18. Rc1 {½-½ (41) Levin,E (2493)-Bocharov,D (2602) Voronezh 2016}) 12... Bf6 {[%emt 0:16:20]} 13. Ra2 {[%emt 0:09:47][%cal Ba1a2,Ba2e2,Be2e8][%mdl 32]} cxd4 {[%emt 0:16:20]} 14. exd4 {[%emt 0:00:32]} (14. Nxd4 {is interesting.} Nxd4 15. exd4 Re8 16. Rxe8+ Qxe8 17. Be3) 14... Nxd4 {[%emt 0:02:42]} 15. Nxd4 {[%emt 0:00:10]} Bxd4 {[%emt 0:00:04] [#]} 16. Bxh7+ $1 {[%emt 0:00:09]} Kxh7 {[%emt 0:00:05]} 17. Qxd4 {[%emt 0:00:08]} Re8 {[%emt 0:01:37][%cal Re8e1]} 18. Rae2 {[%emt 0:05:41]} Qd7 {[%emt 0:09:01]} (18... Rxe2 $11 19. Rxe2 Rc8) 19. Bb2 $1 $16 {[%emt 0:00:58][%csl Gb2][%cal Rd4g7] &Bianco is more active.} f6 {[%emt 0:01:36]} 20. Qd3+ $1 {[%emt 0:01:39]} Kg8 {[%emt 0:00:26] [#]} 21. Bd4 {[%emt 0:10:03]} (21. Bxf6 $1 $16 {[%mdl 512] Hoping for Re7.} Rxe2 22. Rxe2 gxf6 23. Qg6+ Qg7 24. Qxg7+ Kxg7 25. Re7+ Kg6 26. Rxb7) 21... Bc6 $11 {[%emt 0:04:17]} 22. Rxe8+ {Weighted Error Value: White=0.14 (very precise) /Black=0.22 (precise)} 1/2-1/2

[Event "Uruguayan Championship 2022"]
[Site "Montevideo"]
[Date "2022.04.09"]
[Round "2.4"]
[White "Vaz Lacuesta, Leonardo"]
[Black "Rodi, Luis Ernesto"]
[Result "1-0"]
[ECO "C54"]
[WhiteElo "2018"]
[BlackElo "2347"]
[Annotator "NA RC"]
[PlyCount "63"]
[EventDate "2022.04.08"]
[EventType "tourn"]
[EventCountry "URU"]
[SourceTitle "playchess.com"]
[Source "ChessBase"]
[SourceQuality "1"]
[TimeControl "40/5400+30:1800+30"]

1. e4 {[%emt 0:00:04]} e5 {[%emt 0:00:07]} 2. Nf3 {[%emt 0:00:22]} Nc6 {[%emt 0:00:06]} 3. Bc4 {[%emt 0:00:06]} Bc5 {[%emt 0:00:07]} 4. c3 {[%emt 0:01:07]} Nf6 {[%emt 0:00:28]} 5. b4 {[%emt 0:07:12]} Bb6 {[%emt 0:00:16]} 6. d3 {[%emt 0:02:00]} d6 {[%emt 0:00:33]} 7. O-O {[%emt 0:02:32]} Bg4 {[%emt 0:02:34]} 8. h3 {[%emt 0:02:02]} Bd7 {[%emt 0:03:31]} 9. Re1 {[%emt 0:06:01]} h6 {[%emt 0:00:12]} 10. a4 {[%emt 0:01:32]} a6 {[%emt 0:00:55]} 11. Nbd2 {[%emt 0:09:32]} g5 {[%emt 0:03:13]} 12. Nf1 {[%emt 0:06:11]} g4 {[%emt 0:02:03]} 13. hxg4 {[%emt 0:01:22]} Nxg4 {[%emt 0:00:11]} 14. Be3 {[%emt 0:01:04]} Nxe3 {[%emt 0:09:14]} 15. Nxe3 {[%emt 0:00:45]} Bxe3 {[%emt 0:06:10]} 16. Rxe3 {[%emt 0:00:28]} Qe7 {[%emt 0:00:08]} 17. Bd5 {[%emt 0:05:20]} Nd8 {[%emt 0:01:15]} 18. d4 {[%emt 0:01:45]} Bg4 {[%emt 0:05:59]} 19. Qd3 {[%emt 0:02:47]} Qf6 {[%emt 0:10:02]} 20. a5 {[%emt 0:06:16]} Be6 {[%emt 0:00:39]} 21. dxe5 {[%emt 0:03:21]} dxe5 {[%emt 0:00:07]} 22. Qc4 {[%emt 0:00:50]} c6 {[%emt 0:00:19]} 23. Qc5 {[%emt 0:10:09]} Bg4 {[%emt 0:17:05]} 24. Bb3 {[%emt 0:03:56]} Bxf3 {[%emt 0:00:17]} 25. Rxf3 {[%emt 0:00:05]} Qe7 {[%emt 0:00:06]} 26. Qb6 {[%emt 0:01:18]} O-O {[%emt 0:11:02]} 27. Rd1 {[%emt 0:03:50]} Ne6 {[%emt 0:00:28]} 28. Bxe6 {[%emt 0:00:43]} fxe6 {[%emt 0:00:07]} 29. Rg3+ {[%emt 0:01:27]} Kh7 {[%emt 0:02:01]} 30. Qc5 {[%emt 0:03:42]} Qf6 {[%emt 0:08:34]} 31. Rd7+ {[%emt 0:00:17]} Kh8 {[%emt 0:00:52]} 32. Rf3 {[%emt 0:00:14]} 1-0

[Event "Uruguayan Championship 2022"]
[Site "Montevideo"]
[Date "2022.04.09"]
[Round "2.5"]
[White "Vazquez, Facundo"]
[Black "Palacio, Enzo"]
[Result "1-0"]
[ECO "E62"]
[WhiteElo "2319"]
[BlackElo "1896"]
[Annotator "NA RC"]
[PlyCount "79"]
[EventDate "2022.04.08"]
[EventType "tourn"]
[EventCountry "URU"]
[SourceTitle "playchess.com"]
[Source "ChessBase"]
[SourceQuality "1"]
[TimeControl "40/5400+30:1800+30"]

1. d4 {[%emt 0:00:03]} Nf6 {[%emt 0:00:27]} 2. c4 {[%emt 0:00:09]} g6 {[%emt 0:00:08]} 3. Nf3 {[%emt 0:00:20]} Bg7 {[%emt 0:00:06]} 4. Nc3 {[%emt 0:00:15]} O-O {[%emt 0:00:15]} 5. g3 {[%emt 0:00:11]} d6 {[%emt 0:00:05]} 6. Bg2 {[%emt 0:00:06]} c6 {[%emt 0:00:04]} 7. O-O {[%emt 0:00:08]} Bf5 {[%emt 0:00:04]} 8. Ne1 {[%emt 0:00:08]} d5 {[%emt 0:00:09]} 9. h3 {[%emt 0:00:20]} Ne4 {[%emt 0:08:35]} 10. Qb3 {[%emt 0:00:14]} Qb6 {[%emt 0:11:25]} 11. cxd5 {[%emt 0:04:30]} Qxb3 {[%emt 0:10:01]} 12. axb3 {[%emt 0:00:14]} Nxc3 {[%emt 0:09:48]} 13. bxc3 {[%emt 0:00:04]} cxd5 {[%emt 0:05:19]} 14. Bxd5 {[%emt 0:00:30]} Nc6 {[%emt 0:02:15]} 15. g4 {[%emt 0:06:50]} Bd7 {[%emt 0:00:57]} 16. Nd3 {[%emt 0:01:29]} b6 {[%emt 0:16:41]} 17. Bf4 {[%emt 0:11:23]} Rac8 {[%emt 0:05:24]} 18. Bxc6 {[%emt 0:04:51]} Rxc6 {[%emt 0:01:03]} 19. Rxa7 {[%emt 0:00:03]} Be6 {[%emt 0:00:49]} 20. d5 {[%emt 0:02:05]} Bxd5 {[%emt 0:01:04]} 21. Nb4 {[%emt 0:00:36]} Rc5 {[%emt 0:00:44]} 22. Be3 {[%emt 0:01:30]} Rb5 {[%emt 0:00:45]} 23. Nxd5 {[%emt 0:01:09]} Rxd5 {[%emt 0:00:15]} 24. c4 {[%emt 0:00:17]} Re5 {[%emt 0:05:32]} 25. Rd1 {[%emt 0:04:26]} b5 {[%emt 0:05:09]} 26. c5 {[%emt 0:01:34]} f5 {[%emt 0:03:33]} 27. Rdd7 {[%emt 0:03:11]} f4 {[%emt 0:05:39]} 28. Bd4 {[%emt 0:00:32]} Rxe2 {[%emt 0:00:34]} 29. Bxg7 {[%emt 0:00:41]} Re1+ {[%emt 0:01:30]} 30. Kg2 {[%emt 0:02:45]} Kxg7 {[%emt 0:02:04]} 31. Rxe7+ {[%emt 0:00:10]} Rxe7 {[%emt 0:00:05]} 32. Rxe7+ {[%emt 0:00:07]} Kf6 {[%emt 0:00:31]} 33. Rb7 {[%emt 0:01:16]} Ke5 {[%emt 0:02:55]} 34. Rxb5 {[%emt 0:00:22]} Kd5 {[%emt 0:00:27]} 35. b4 {[%emt 0:00:09]} h5 {[%emt 0:00:16]} 36. Kf3 {[%emt 0:01:56]} hxg4+ {[%emt 0:01:05]} 37. hxg4 {[%emt 0:00:08]} g5 {[%emt 0:00:26]} 38. c6+ {[%emt 0:00:09]} Kxc6 {[%emt 0:00:20]} 39. Rxg5 {[%emt 0:00:03]} Rb8 {[%emt 0:00:21]} 40. b5+ {[%emt 0:00:06]} 1-0

[Event "Uruguayan Championship 2022"]
[Site "Montevideo"]
[Date "2022.04.09"]
[Round "2.6"]
[White "Carvalho, Guillermo"]
[Black "Granara Barreto, Sebastian"]
[Result "1/2-1/2"]
[ECO "A22"]
[WhiteElo "2171"]
[BlackElo "2131"]
[Annotator "NA RC"]
[PlyCount "30"]
[EventDate "2022.04.08"]
[EventType "tourn"]
[EventCountry "URU"]
[SourceTitle "playchess.com"]
[Source "ChessBase"]
[SourceQuality "1"]
[TimeControl "40/5400+30:1800+30"]

1. c4 {[%emt 0:03:31]} e5 {[%emt 0:00:12]} 2. Nc3 {[%emt 0:00:07]} Nf6 {[%emt 0:00:14]} 3. g3 {[%emt 0:00:12]} d5 {[%emt 0:02:02]} 4. cxd5 {[%emt 0:00:46]} Nxd5 {[%emt 0:00:12]} 5. Bg2 {[%emt 0:00:07]} Nb6 {[%emt 0:00:10]} 6. e3 {[%emt 0:01:06]} Nc6 {[%emt 0:03:46]} 7. Nge2 {[%emt 0:00:47]} h5 {[%emt 0:02:10]} 8. h3 {[%emt 0:01:19]} Be6 {[%emt 0:03:47]} 9. d4 {[%emt 0:04:25]} exd4 {[%emt 0:04:22]} 10. exd4 {[%emt 0:07:06]} Nd5 {[%emt 0:01:43]} 11. O-O {[%emt 0:05:26]} Qd7 {[%emt 0:07:13]} 12. Nf4 {[%emt 0:17:19]} Nxf4 {[%emt 0:27:08]} 13. Bxf4 {[%emt 0:00:10]} Nxd4 {[%emt 0:00:06]} 14. Bxb7 {[%emt 0:32:41]} Rd8 {[%emt 0:12:56]} 15. Bg2 {[%emt 0:07:19]} Be7 {[%emt 0:03:55]} 1/2-1/2

[Event "Uruguayan Championship 2022"]
[Site "Montevideo"]
[Date "2022.04.10"]
[Round "3.1"]
[White "Granara Barreto, Sebastian"]
[Black "Diaz Hollemaert, Nahuel"]
[Result "1/2-1/2"]
[ECO "B00"]
[WhiteElo "2131"]
[BlackElo "2439"]
[Annotator "TA"]
[PlyCount "56"]
[EventDate "2022.04.08"]
[EventType "tourn"]
[EventCountry "URU"]
[SourceTitle "playchess.com"]
[Source "ChessBase"]
[SourceQuality "1"]
[TimeControl "40/5400+30:1800+30"]

{[%evp 9,56,56,80,67,66,54,64,72,72,68,54,0,58,35,35,38,50,31,46,35,25,34,52,22,20,39,48,26,24,23,56,89,90,75,95,105,109,114,187,187,187,168,162,166,162,156,185,184,191]} 1. e4 {[%emt 0:00:03]} b6 {[%emt 0:00:24]} 2. d4 {[%emt 0:00:27]} Bb7 {[%emt 0:00:05]} 3. Bd3 {[%emt 0:01:48]} e6 {[%emt 0:04:33]} 4. Nf3 {[%emt 0:01:21]} d6 {[%emt 0:03:29]} 5. c4 {[%emt 0:02:26]} g6 {[%emt 0:05:24]} 6. Nc3 {[%emt 0:01:53] B00: Queen's Fianchetto Defence, Nimzowitsch Defence.} Bg7 {[%emt 0:00:14]} 7. Be3 {[%emt 0:01:57] &Bianco is more active.} Nd7 {[%emt 0:05:16]} 8. Qd2 {[%emt 0:01:38] White is slightly better.} Ngf6 {[%emt 0:07:45]} 9. h3 {[%emt 0:04:25]} O-O {[%emt 0:03:48]} 10. O-O-O {[%emt 0:06:20] [#]} (10. O-O $14) 10... d5 $146 {[%emt 0:08:07]} ({Better is} 10... b5 $11) ({Predecessor:} 10... c6 11. Bh6 e5 12. Bxg7 Kxg7 13. g4 exd4 14. Nxd4 Ne5 15. f4 Nxd3+ 16. Qxd3 Re8 {0-1 (44) Tashmuradova,I-Ovezova,M (2300) Rasht 1998}) 11. e5 Ne4 {[%emt 0:06:16]} 12. Bxe4 {[%emt 0:11:36]} dxe4 {[%emt 0:00:05]} 13. Ng5 {[%emt 0:00:16]} b5 {[%emt 0:12:40]} 14. cxb5 {[%emt 0:08:13]} ({Much weaker is} 14. Nxb5 h6 15. h4 hxg5 $15) 14... a6 {[%emt 0:06:00]} 15. b6 {[%emt 0:21:26]} (15. Ncxe4 $2 h6 16. f3 (16. bxa6 $2 Rxa6 17. Nxf7 Rxf7 $17) 16... hxg5 17. Bxg5 Qc8 18. Nf6+ Bxf6 19. exf6 axb5 $19) 15... cxb6 {[%emt 0:13:00]} 16. Ngxe4 {[%emt 0:01:48] next f3 is good for White.} b5 $1 {[%emt 0:00:07] Strongly threatening ...b4.} 17. f3 $1 {[%emt 0:08:31]} b4 {[%emt 0:13:05]} 18. Na4 {[%emt 0:01:35]} Bxe4 {[%emt 0:04:29]} 19. fxe4 {[%emt 0:00:07]} Qc7+ {[%emt 0:00:13]} 20. Kb1 $1 {[%emt 0:05:40]} Qc6 {[%emt 0:01:10]} 21. Qc2 {[%emt 0:00:32]} Qb7 {[%emt 0:00:23]} 22. Rc1 {[%emt 0:04:15]} Rac8 {[%emt 0:00:42] Inhibits Qc6.} 23. Qd3 {[%emt 0:00:24]} Qb5 {[%emt 0:00:27] [#]} (23... Rfd8 $16 {was worth a try.}) 24. Qxb5 $1 $18 {[%emt 0:01:57] White is clearly better.} axb5 {[%emt 0:00:01]} 25. Nc5 {[%emt 0:00:05]} Nxc5 {[%emt 0:00:12]} 26. Rxc5 {[%emt 0:00:09]} Rxc5 {[%emt 0:00:04]} 27. dxc5 {[%emt 0:00:03]} Bxe5 {[%emt 0:00:04] [#]} 28. Rd1 $1 {[%emt 0:00:08]} f5 {[%emt 0:03:00] Weighted Error Value: White=0.09 (flawless) /Black=0.16 (very precise)} 1/2-1/2

[Event "Uruguayan Championship 2022"]
[Site "Montevideo"]
[Date "2022.04.10"]
[Round "3.2"]
[White "Palacio, Enzo"]
[Black "Carvalho, Guillermo"]
[Result "0-1"]
[ECO "C99"]
[WhiteElo "1896"]
[BlackElo "2171"]
[Annotator "RC"]
[PlyCount "82"]
[EventDate "2022.04.08"]
[EventType "tourn"]
[EventCountry "URU"]
[SourceTitle "playchess.com"]
[Source "ChessBase"]
[SourceQuality "1"]
[TimeControl "40/5400+30:1800+30"]

1. e4 {[%emt 0:00:03]} e5 {[%emt 0:00:07]} 2. Nf3 {[%emt 0:00:05]} Nc6 {[%emt 0:00:03]} 3. Bb5 {[%emt 0:00:04]} a6 {[%emt 0:00:05]} 4. Ba4 {[%emt 0:00:05]} Nf6 {[%emt 0:00:10]} 5. O-O {[%emt 0:00:06]} b5 {[%emt 0:00:22]} 6. Bb3 {[%emt 0:00:05]} Be7 {[%emt 0:00:07]} 7. Re1 {[%emt 0:00:16]} O-O {[%emt 0:00:18]} 8. h3 {[%emt 0:03:05]} d6 {[%emt 0:02:47]} 9. c3 {[%emt 0:00:18]} Na5 {[%emt 0:04:16]} 10. Bc2 {[%emt 0:00:08]} c5 {[%emt 0:00:18]} 11. d4 Qc7 {[%emt 0:07:21]} 12. Nbd2 {[%emt 0:02:01]} cxd4 {[%emt 0:02:56]} 13. cxd4 {[%emt 0:00:46]} Nc6 {[%emt 0:00:41]} 14. d5 {[%emt 0:05:20]} Nb4 {[%emt 0:06:30]} 15. Bb1 {[%emt 0:00:17]} a5 {[%emt 0:00:09]} 16. a3 {[%emt 0:11:03]} Na6 {[%emt 0:00:50]} 17. Bd3 {[%emt 0:10:18]} Bd7 {[%emt 0:01:16]} 18. Nf1 {[%emt 0:13:48]} Nc5 {[%emt 0:03:51]} 19. Bc2 {[%emt 0:04:49]} Rfc8 {[%emt 0:04:01]} 20. Bd2 {[%emt 0:03:29]} Qb7 {[%emt 0:14:47]} 21. b3 {[%emt 0:04:02]} Bd8 {[%emt 0:06:42]} 22. Ng3 {[%emt 0:04:53]} g6 {[%emt 0:03:58]} 23. Nh2 {[%emt 0:07:04]} b4 {[%emt 0:02:36]} 24. a4 {[%emt 0:01:01]} Be7 {[%emt 0:04:02]} 25. Re3 {[%emt 0:09:06]} Qc7 {[%emt 0:03:04]} 26. Rc1 {[%emt 0:00:42]} Qd8 {[%emt 0:00:09]} 27. Re1 {[%emt 0:04:10]} Ne8 {[%emt 0:05:56]} 28. Ng4 {[%emt 0:01:53]} Bxg4 {[%emt 0:00:40]} 29. Qxg4 {[%emt 0:02:49]} Nf6 {[%emt 0:02:16]} 30. Qf3 {[%emt 0:01:31]} Qf8 {[%emt 0:02:36]} 31. Nf1 {[%emt 0:02:21]} Ra7 {[%emt 0:01:57]} 32. g4 {[%emt 0:00:29]} Rac7 {[%emt 0:00:22]} 33. Bb1 {[%emt 0:01:10]} Nfd7 {[%emt 0:03:45]} 34. Ng3 {[%emt 0:00:43]} h6 {[%emt 0:02:05]} 35. Kg2 {[%emt 0:01:27]} Bg5 {[%emt 0:02:36]} 36. Nf1 {[%emt 0:02:37]} Bxd2 {[%emt 0:00:38]} 37. Nxd2 {[%emt 0:00:07]} Nd3 {[%emt 0:03:22]} 38. Qxd3 {[%emt 0:02:20]} Rxc1 {[%emt 0:00:08]} 39. Rxc1 {[%emt 0:00:02]} Rxc1 {[%emt 0:00:08]} 40. Qb5 {[%emt 0:05:13]} Nc5 {[%emt 0:01:36]} 41. Bd3 {[%emt 0:30:35]} Rd1 {[%emt 0:30:44]} 0-1

[Event "Uruguayan Championship 2022"]
[Site "Montevideo"]
[Date "2022.04.10"]
[Round "3.3"]
[White "Rodi, Luis Ernesto"]
[Black "Vazquez, Facundo"]
[Result "0-1"]
[ECO "C18"]
[WhiteElo "2347"]
[BlackElo "2319"]
[Annotator "RC"]
[PlyCount "118"]
[EventDate "2022.04.08"]
[EventType "tourn"]
[EventCountry "URU"]
[SourceTitle "playchess.com"]
[Source "ChessBase"]
[SourceQuality "1"]
[TimeControl "40/5400+30:1800+30"]

1. e4 e6 2. d4 d5 3. Nc3 Bb4 4. e5 c5 5. a3 Bxc3+ 6. bxc3 Ne7 7. Qg4 Qc7 8. Qxg7 Rg8 9. Qxh7 cxd4 10. Qd3 Qxe5+ 11. Ne2 dxc3 12. Bf4 Qf5 13. Qxf5 Nxf5 14. Nxc3 Nc6 15. Bd2 Bd7 16. O-O-O Rc8 17. g3 Ncd4 18. Bd3 Ne7 19. Kb2 e5 20. Be3 Bg4 21. Nb5 Nxb5 22. Bxb5+ Bd7 23. Bd3 Ba4 24. Rc1 e4 25. Be2 Rg6 26. c4 Rd8 27. cxd5 Nxd5 28. Bd2 e3 29. fxe3 Nf4 30. Bb4 Nxe2 31. Rce1 Bb5 32. Rhf1 Nxg3 33. Rf4 Ne2 34. Rf2 Rd5 35. Rfxe2 Bxe2 36. Rxe2 Rdg5 37. Kc3 Rg2 38. Re1 Rg1 39. Kd3 R6g2 40. h4 Rxe1 41. Bxe1 Ke7 42. Ke4 Kf6 43. Kf3 Ra2 44. Bb4 Kg6 45. Kg4 f5+ 46. Kf4 Rf2+ 47. Ke5 Rf3 48. e4 fxe4 49. Kxe4 Rh3 50. Bc5 b6 51. Bd6 Rxh4+ 52. Kd5 Kf7 53. Bb8 Ra4 54. Bd6 b5 55. Kc6 a6 56. Bb4 Ke6 57. Kc5 Ke5 58. Kb6 Kd5 59. Bf8 Kc4 0-1

[Event "Uruguayan Championship 2022"]
[Site "Montevideo"]
[Date "2022.04.10"]
[Round "3.4"]
[White "Lopez Azambuja, Nicolas"]
[Black "Vaz Lacuesta, Leonardo"]
[Result "1-0"]
[ECO "E40"]
[WhiteElo "2318"]
[BlackElo "2018"]
[Annotator "ChessBase"]
[PlyCount "75"]
[EventDate "2022.04.08"]
[EventType "tourn"]
[EventCountry "URU"]
[SourceTitle "playchess.com"]
[Source "ChessBase"]
[SourceQuality "1"]
[TimeControl "40/5400+30:1800+30"]

1. d4 {[%emt 0:00:05]} Nf6 {[%emt 0:00:05]} 2. c4 {[%emt 0:00:10]} e6 {[%emt 0:00:08]} 3. Nc3 {[%emt 0:00:15]} Bb4 {[%emt 0:00:20]} 4. e3 {[%emt 0:01:39]} d5 {[%emt 0:01:39]} 5. Bd2 {[%emt 0:01:40]} O-O {[%emt 0:00:29]} 6. Nf3 {[%emt 0:01:56]} b6 {[%emt 0:00:58]} 7. Rc1 a6 {[%emt 0:02:16]} 8. Bd3 {[%emt 0:08:58]} Bb7 {[%emt 0:02:21]} 9. cxd5 {[%emt 0:04:27]} exd5 {[%emt 0:03:05]} 10. O-O {[%emt 0:00:39]} Nbd7 {[%emt 0:05:13]} 11. Ne5 {[%emt 0:01:15]} Bd6 {[%emt 0:04:09]} 12. f4 {[%emt 0:00:34]} b5 {[%emt 0:00:44]} 13. Qf3 {[%emt 0:11:40]} b4 {[%emt 0:06:47]} 14. Qh3 {[%emt 0:14:50]} Nb6 {[%emt 0:22:00]} 15. Nd1 {[%emt 0:07:19]} Ne4 {[%emt 0:04:10]} 16. Nf2 {[%emt 0:02:35]} f5 {[%emt 0:04:45]} 17. Rc2 {[%emt 0:03:23]} a5 {[%emt 0:06:02]} 18. Qf3 {[%emt 0:05:28]} Ba6 {[%emt 0:08:30]} 19. Bxa6 {[%emt 0:00:53]} Rxa6 {[%emt 0:00:02]} 20. Qe2 {[%emt 0:00:09]} Qa8 {[%emt 0:03:24]} 21. Nfd3 {[%emt 0:01:47]} Nc8 {[%emt 0:08:08]} 22. Rfc1 {[%emt 0:04:53]} Ne7 {[%emt 0:01:03]} 23. Be1 {[%emt 0:00:47]} Ra7 {[%emt 0:01:29]} 24. Bh4 {[%emt 0:03:25]} Nc8 {[%emt 0:00:32]} 25. g4 {[%emt 0:01:29]} Nb6 {[%emt 0:02:23]} 26. Nc6 {[%emt 0:02:53]} Rb7 {[%emt 0:02:51]} 27. gxf5 {[%emt 0:03:04]} Rxf5 {[%emt 0:01:01]} 28. Nde5 {[%emt 0:01:15]} a4 {[%emt 0:03:48]} 29. Qg4 {[%emt 0:03:34]} Qf8 {[%emt 0:01:11]} 30. Nd8 {[%emt 0:01:46]} Bxe5 {[%emt 0:03:12]} 31. dxe5 {[%emt 0:02:12]} Rb8 {[%emt 0:01:49]} 32. Ne6 {[%emt 0:00:20]} h5 {[%emt 0:01:05]} 33. Qg2 {[%emt 0:01:41]} Qf7 {[%emt 0:00:37]} 34. Rxc7 {[%emt 0:00:33]} Nd7 {[%emt 0:00:34]} 35. Nd4 {[%emt 0:01:39]} Re8 {[%emt 0:00:30]} 36. R1c6 {[%emt 0:03:38]} Rexe5 {[%emt 0:00:38]} 37. fxe5 {[%emt 0:01:30]} Rxe5 {[%emt 0:00:16]} 38. Rg6 {[%emt 0:01:17]} 1-0

[Event "Uruguayan Championship 2022"]
[Site "Montevideo"]
[Date "2022.04.10"]
[Round "3.5"]
[White "Roselli Mailhe, Bernardo"]
[Black "Hoffman, Alejandro"]
[Result "1/2-1/2"]
[ECO "D11"]
[WhiteElo "2426"]
[BlackElo "2403"]
[Annotator "TA"]
[PlyCount "22"]
[EventDate "2022.04.08"]
[EventType "tourn"]
[EventCountry "URU"]
[SourceTitle "playchess.com"]
[Source "ChessBase"]
[SourceQuality "1"]
[TimeControl "40/5400+30:1800+30"]

{[%evp 10,22,19,19,20,0,16,15,26,29,29,20,24,30,51]} 1. d4 d5 2. c4 c6 3. Nf3 Nf6 4. e3 Bg4 5. Nbd2 e6 6. Bd3 Nbd7 {D11: Slav Defence: 3 Nf3 sidelines and 3...Nf6 4 e3 Bg4.} 7. Qc2 Bxf3 8. Nxf3 Bd6 9. O-O O-O 10. b3 Qe7 11. Bb2 {[#]} Rac8 $146 {White took control after the opening.  Weighted Error Value: White=0.05 (flawless) /Black=0.06 (flawless)} ({Predecessor:} 11... Ba3 12. Bc3 Bb4 13. Bb2 Ba3 14. Rfd1 Bxb2 15. Qxb2 Rac8 16. Rac1 Rfd8 17. b4 dxc4 18. Bxc4 {1-0 (44) Maly,A (2371)-Gunina,V (2451) Chess.com INT 2020}) 1/2-1/2